bitfinex/quotes_BTCUSD_20250414
["timestamp","ask_amount","ask_price","bid_price","bid_amount"]
[1744635053043,0.280896,85144.0,85143.0,0.02233925]
[1744635056714,0.234896,85144.0,85143.0,0.02233925]
[1744635058130,0.234896,85144.0,85143.0,0.004]
[1744635060086,0.58943685,85144.0,85143.0,0.004]
[1744635061409,0.63843685,85144.0,85143.0,0.0223406]
[1744635061752,0.63843685,85144.0,85143.0,0.0203406]
[1744635061952,0.63843685,85144.0,85143.0,0.0183406]
[1744635062592,0.011747,85126.0,85124.0,0.234951]
[1744635062766,0.011746,85133.0,85127.0,0.011747]
[1744635062960,0.234934,85131.0,85126.0,0.011747]
[1744635063166,0.234934,85131.0,85127.0,0.23494]
[1744635063365,0.234934,85131.0,85128.0,0.23494]
[1744635063366,0.24668,85131.0,85128.0,0.23494]
[1744635063568,0.011746,85131.0,85128.0,0.23494]
[1744635063788,0.011746,85130.0,85127.0,0.234938]
[1744635064213,0.011747,85127.0,85124.0,0.13918316]
[1744635064385,0.234948,85125.0,85124.0,0.01834162]
[1744635064927,0.60117356,85125.0,85124.0,0.01834162]
[1744635065059,1.11577356,85125.0,85124.0,0.01834162]
[1744635065667,1.2366151,85125.0,85124.0,0.01834162]
[1744635065889,1.2366151,85125.0,85124.0,0.02334162]
[1744635066165,1.2366151,85125.0,85124.0,0.002]
[1744635066406,0.574967,85118.0,85117.0,0.01834591]
[1744635067783,0.58386979,85118.0,85117.0,0.01834591]
[1744635068199,0.58951885,85114.0,85108.0,0.0008446]
[1744635068947,0.574978,85114.0,85108.0,0.0008446]
[1744635069146,0.58951885,85114.0,85108.0,0.0008446]
[1744635069680,0.574978,85114.0,85108.0,0.0008446]
[1744635071056,0.584978,85114.0,85108.0,0.0008446]
[1744635071629,0.584978,85114.0,85108.0,0.0125936]
[1744635071830,0.35,85114.0,85113.0,0.2358256]
[1744635072029,0.35,85114.0,85113.0,0.0008446]
[1744635072516,0.01,85114.0,85113.0,0.40236714]
[1744635073720,0.01,85114.0,85113.0,0.40336714]
[1744635074802,0.01,85114.0,85113.0,0.40536714]
[1744635074982,0.01,85114.0,85113.0,0.40436714]
[1744635075466,0.01,85114.0,85113.0,0.40636714]
[1744635081268,0.01,85114.0,85113.0,0.45466714]
[1744635082051,0.01,85114.0,85113.0,0.45066714]
[1744635082366,0.01,85114.0,85113.0,0.46166714]
[1744635093371,0.01,85114.0,85113.0,0.88036714]
[1744635096885,0.01,85114.0,85113.0,0.83206714]
[1744635097142,0.244978,85114.0,85113.0,0.55138614]
[1744635097385,0.292178,85114.0,85113.0,0.0118446]
[1744635097804,0.292178,85114.0,85113.0,0.0068446]
[1744635098277,0.292178,85114.0,85113.0,0.0098446]
[1744635099348,0.292178,85114.0,85113.0,0.0038446]
[1744635099551,0.292178,85114.0,85113.0,0.0048446]
[1744635099749,0.292178,85114.0,85113.0,0.0038446]
[1744635099929,0.292178,85114.0,85113.0,0.0008446]
[1744635100127,0.292178,85114.0,85113.0,0.0028446]
[1744635103743,0.292178,85114.0,85113.0,0.0018446]
[1744635111547,0.244978,85114.0,85113.0,0.0018446]
[1744635112614,0.01,85114.0,85113.0,0.0018446]
[1744635112815,0.01,85114.0,85113.0,0.2368256]
[1744635113023,0.01,85114.0,85113.0,0.0018446]
[1744635113235,0.244978,85114.0,85113.0,0.0018446]
[1744635113796,0.01,85114.0,85113.0,0.0018446]
[1744635113998,0.244978,85114.0,85113.0,0.0018446]
[1744635114192,0.01,85114.0,85113.0,0.0018446]
[1744635114391,0.244978,85114.0,85113.0,0.0018446]
[1744635117653,0.229478,85114.0,85113.0,0.0018446]
[1744635119017,0.63121885,85114.0,85113.0,0.0018446]
[1744635119209,1.10689176,85114.0,85113.0,0.0018446]
[1744635119704,1.10689176,85114.0,85113.0,0.0008446]
[1744635126333,1.09591885,85114.0,85113.0,0.0008446]
[1744635126894,1.09591885,85114.0,85113.0,6e-07]
[1744635126895,1.21676039,85114.0,85113.0,6e-07]
[1744635128112,1.21676039,85114.0,85108.0,0.0008446]
[1744635128113,0.68153285,85109.0,85108.0,2e-07]
[1744635128350,0.0454,85100.0,85095.0,8e-07]
[1744635128499,0.235009,85104.0,85095.0,8e-07]
[1744635128500,0.63516885,85096.0,85095.0,8e-07]
[1744635128883,0.80121039,85096.0,85095.0,8e-07]
[1744635130919,0.80321039,85096.0,85095.0,8e-07]
[1744635132159,0.81213674,85096.0,85095.0,8e-07]
[1744635132362,0.6456952,85096.0,85095.0,8e-07]
[1744635132565,0.58595435,85096.0,85095.0,8e-07]
[1744635133004,0.6004952,85096.0,85095.0,8e-07]
[1744635133211,0.59156885,85096.0,85095.0,8e-07]
[1744635133414,0.002,85096.0,85095.0,8e-07]
[1744635133611,0.246774,85098.0,85095.0,0.0461008]
[1744635133771,0.002,85096.0,85095.0,0.0461008]
[1744635133966,0.002,85096.0,85095.0,0.2811318]
[1744635134303,0.002,85096.0,85095.0,0.0461008]
[1744635134691,0.002,85096.0,85095.0,0.2811318]
[1744635135293,0.428251,85099.0,85096.0,0.235028]
[1744635135533,0.001,85096.0,85095.0,0.2811298]
[1744635136266,0.351751,85098.0,85095.0,0.2811298]
[1744635136541,0.001,85096.0,85095.0,0.2811298]
[1744635136886,0.001,85096.0,85095.0,0.40197134]
[1744635137102,0.4165,85119.0,85104.0,0.235005]
[1744635137103,0.011749,85107.0,85104.0,0.235005]
[1744635137312,0.01175,85106.0,85103.0,0.235003]
[1744635137670,0.35175,85105.0,85102.0,0.23501]
[1744635137893,0.34,85105.0,85103.0,0.235009]
[1744635138101,0.34,85105.0,85102.0,0.23501]
[1744635138102,0.35175,85105.0,85102.0,0.23501]
[1744635138244,0.586754,85105.0,85102.0,0.23501]
[1744635138447,0.34,85105.0,85103.0,0.235008]
[1744635139077,0.586754,85105.0,85101.0,0.35585554]
[1744635139294,0.586754,85105.0,85102.0,0.001]
[1744635139466,0.01175,85104.0,85102.0,0.001]
[1744635139720,0.35175,85105.0,85102.0,0.001]
[1744635139890,0.235006,85104.0,85102.0,0.001]
[1744635140099,0.246756,85104.0,85101.0,0.35585354]
[1744635140305,0.235009,85103.0,85101.0,0.12284154]
[1744635140726,0.235012,85102.0,85101.0,0.002]
[1744635141038,0.235009,85103.0,85101.0,0.002]
[1744635141540,0.34,85106.0,85101.0,0.001]
[1744635141767,0.01175,85105.0,85101.0,0.01275]
[1744635141949,0.01175,85105.0,85102.0,0.001]
[1744635142144,0.01175,85105.0,85103.0,0.235009]
[1744635142346,0.35175,85106.0,85102.0,0.01175]
[1744635142553,0.246754,85105.0,85102.0,0.236012]
[1744635143435,0.246754,85105.0,85103.0,0.001]
[1744635143778,0.246754,85105.0,85102.0,0.236012]
[1744635143974,0.235007,85104.0,85102.0,0.002]
[1744635144403,0.246754,85105.0,85102.0,0.237011]
[1744635144860,0.246754,85105.0,85102.0,0.236011]
[1744635145257,0.246754,85105.0,85102.0,0.237011]
[1744635145456,0.246754,85105.0,85102.0,0.236011]
[1744635145816,0.246754,85105.0,85103.0,0.001]
[1744635146221,0.246754,85105.0,85102.0,0.236011]
[1744635146461,0.246754,85105.0,85102.0,0.237011]
[1744635147738,0.23498,85114.0,85102.0,0.237011]
[1744635147739,0.34,85109.0,85105.0,0.01175]
[1744635147971,0.34,85109.0,85108.0,0.280595]
[1744635148171,0.34,85109.0,85108.0,0.40143654]
[1744635148712,0.34,85112.0,85110.0,0.234987]
[1744635148907,0.011749,85111.0,85108.0,0.40143654]
[1744635149705,0.586734,85112.0,85108.0,0.40143654]
[1744635150022,0.011749,85113.0,85110.0,0.234989]
[1744635150225,0.34,85114.0,85113.0,0.234981]
[1744635150983,0.01175,85104.0,85095.0,0.0921008]
[1744635151112,0.246756,85104.0,85103.0,0.01834578]
[1744635151526,0.011749,85113.0,85103.0,0.13918732]
[1744635151727,0.246723,85116.0,85106.0,0.01175]
[1744635151949,0.011749,85110.0,85106.0,0.01175]
[1744635152160,0.234997,85108.0,85104.0,0.235001]
[1744635152371,0.01175,85106.0,85103.0,0.13918732]
[1744635152568,0.235006,85104.0,85103.0,0.14218732]
[1744635152980,0.235004,85105.0,85103.0,0.13918732]
[1744635153355,0.235004,85105.0,85104.0,0.002]
[1744635154619,0.235004,85105.0,85103.0,0.12084154]
[1744635154819,0.235004,85105.0,85103.0,0.12284154]
[1744635154958,0.235004,85105.0,85103.0,0.12484154]
[1744635155165,0.01164917,85121.0,85120.0,0.234962]
[1744635155396,0.011747,85128.0,85120.0,0.12084154]
[1744635155783,0.246695,85126.0,85120.0,0.12084154]
[1744635155989,0.246695,85126.0,85121.0,0.011747]
[1744635156191,0.011747,85125.0,85122.0,0.234956]
[1744635156389,0.246694,85126.0,85123.0,0.234952]
[1744635156565,0.01168934,85125.0,85123.0,0.234952]
[1744635156705,0.246694,85126.0,85123.0,0.234952]
[1744635157107,0.24669,85127.0,85124.0,0.234951]
[1744635157895,0.011747,85126.0,85123.0,0.234952]
[1744635158233,0.246675,85132.0,85127.0,0.234943]
[1744635158457,0.234927,85133.0,85129.0,0.234932]
[1744635158678,0.02341583,85134.0,85127.0,0.16924154]
[1744635158679,0.25833983,85134.0,85131.0,0.234931]
[1744635158881,0.25833983,85134.0,85130.0,0.234933]
[1744635159520,0.25833983,85134.0,85131.0,0.234931]
[1744635160775,0.01166983,85134.0,85131.0,0.234931]
[1744635160971,0.011745,85142.0,85135.0,0.011746]
[1744635161193,0.011745,85140.0,85133.0,0.234926]
[1744635161399,0.351745,85137.0,85134.0,0.234923]
[1744635161643,0.351745,85137.0,85135.0,0.23492]
[1744635161844,0.34,85137.0,85136.0,0.234918]
[1744635162048,0.34,85137.0,85135.0,0.23492]
[1744635162461,0.34,85138.0,85135.0,0.23492]
[1744635162642,0.34,85138.0,85136.0,0.234917]
[1744635163936,0.011745,85137.0,85134.0,0.234922]
[1744635164105,0.246659,85138.0,85135.0,0.23492]
[1744635164470,0.24666,85137.0,85134.0,0.234922]
[1744635164685,0.011746,85134.0,85131.0,0.23493]
[1744635165255,0.011746,85135.0,85130.0,0.234932]
[1744635165375,0.246667,85135.0,85132.0,0.234927]
[1744635165876,0.011746,85132.0,85127.0,0.40418254]
[1744635166050,0.011747,85127.0,85124.0,0.234951]
[1744635166251,0.011747,85128.0,85125.0,0.234947]
[1744635166457,0.011747,85128.0,85124.0,0.234951]
[1744635166458,0.011747,85127.0,85124.0,0.234951]
[1744635166590,0.011747,85128.0,85125.0,0.234947]
[1744635166794,0.246688,85128.0,85124.0,0.234951]
[1744635167001,0.011747,85127.0,85125.0,0.234948]
[1744635167427,0.011747,85127.0,85124.0,0.234951]
[1744635168261,0.24669,85127.0,85124.0,0.234951]
[1744635168759,0.234945,85126.0,85124.0,0.001]
[1744635168977,0.234945,85126.0,85124.0,0.23595]
[1744635169165,0.246692,85127.0,85124.0,0.23695]
[1744635170219,0.246692,85127.0,85124.0,0.23595]
[1744635170443,0.246692,85127.0,85124.0,0.23495]
[1744635170566,0.011747,85124.0,85122.0,0.234956]
[1744635170777,0.246698,85125.0,85122.0,0.35579754]
[1744635170996,0.011747,85125.0,85123.0,0.234953]
[1744635171306,0.011747,85125.0,85124.0,0.001]
[1744635171511,0.011747,85125.0,85123.0,0.234953]
[1744635171713,0.011747,85125.0,85124.0,0.001]
[1744635172121,0.011747,85125.0,85123.0,0.234953]
[1744635172326,0.011747,85125.0,85123.0,0.235953]
[1744635173480,0.234951,85124.0,85123.0,0.002]
[1744635173731,0.574951,85124.0,85123.0,0.002]
[1744635173947,0.58949185,85124.0,85123.0,0.002]
[1744635174089,0.58949185,85124.0,85123.0,0.001]
[1744635174698,0.011749,85112.0,85109.0,0.23499]
[1744635174902,0.246735,85112.0,85109.0,0.35583154]
[1744635175675,0.246735,85112.0,85109.0,0.12084154]
[1744635175676,0.234987,85111.0,85109.0,0.12084154]
[1744635175877,0.234987,85111.0,85109.0,0.12284154]
[1744635177006,0.23499,85110.0,85109.0,0.12084154]
[1744635177203,0.23499,85110.0,85109.0,0.12384154]
[1744635177403,0.23499,85110.0,85109.0,0.12284154]
[1744635177609,0.23499,85110.0,85109.0,0.002]
[1744635177812,0.23499,85110.0,85109.0,0.003]
[1744635178011,0.234987,85111.0,85103.0,0.01175]
[1744635178012,0.011749,85108.0,85105.0,0.235002]
[1744635178225,0.246747,85107.0,85104.0,0.235006]
[1744635178427,0.246747,85107.0,85104.0,0.35584754]
[1744635179107,0.246747,85107.0,85105.0,0.235003]
[1744635179307,0.246747,85107.0,85104.0,0.35584754]
[1744635179509,0.235001,85106.0,85104.0,0.12084154]
[1744635179736,0.246747,85107.0,85104.0,0.35584654]
[1744635180448,0.246747,85107.0,85104.0,0.35784654]
[1744635180769,0.246744,85109.0,85106.0,0.235001]
[1744635180931,0.011749,85107.0,85105.0,0.235003]
[1744635181125,0.246745,85108.0,85105.0,0.235003]
[1744635181635,0.24484284,85108.0,85105.0,0.235003]
[1744635182063,0.234998,85107.0,85105.0,0.235003]
[1744635182263,0.246747,85107.0,85105.0,0.235003]
[1744635182484,0.246747,85107.0,85104.0,0.35584654]
[1744635182657,0.011749,85107.0,85104.0,0.12084154]
[1744635182865,0.235003,85106.0,85104.0,0.12084154]
[1744635183244,0.011749,85107.0,85105.0,0.235002]
[1744635183376,0.246748,85107.0,85104.0,0.35584754]
[1744635183783,0.246748,85107.0,85104.0,0.35684754]
[1744635183966,0.24484284,85108.0,85105.0,0.235001]
[1744635184403,0.246747,85107.0,85104.0,0.35784754]
[1744635184597,0.246747,85107.0,85104.0,0.35684754]
[1744635185142,0.246747,85107.0,85104.0,0.35584754]
[1744635185361,0.011749,85109.0,85107.0,0.234998]
[1744635185525,0.011749,85108.0,85104.0,0.12084154]
[1744635185741,0.246746,85108.0,85105.0,0.235001]
[1744635186152,0.011749,85108.0,85105.0,0.235001]
[1744635186497,0.011749,85108.0,85104.0,0.35584254]
[1744635186498,0.011749,85107.0,85104.0,0.12084154]
[1744635186645,0.246744,85108.0,85104.0,0.35584654]
[1744635186851,0.246744,85108.0,85105.0,0.235003]
[1744635187062,0.24014519,85109.0,85105.0,0.235003]
[1744635187261,0.011749,85108.0,85105.0,0.235003]
[1744635187906,0.234998,85107.0,85105.0,0.235003]
[1744635188403,0.246746,85108.0,85105.0,0.235003]
[1744635188771,0.234991,85110.0,85105.0,0.235003]
[1744635188772,0.24674,85110.0,85107.0,0.234995]
[1744635189085,0.011749,85108.0,85106.0,0.235]
[1744635189299,0.011749,85109.0,85107.0,0.234996]
[1744635189477,0.246744,85109.0,85106.0,0.235]
[1744635189671,0.234995,85108.0,85106.0,0.235]
[1744635190608,0.246744,85109.0,85106.0,0.235]
[1744635190810,0.234995,85108.0,85106.0,0.235]
[1744635191557,0.246744,85109.0,85106.0,0.235]
[1744635191759,0.4165,85130.0,85107.0,0.12084154]
[1744635191954,0.23494,85129.0,85121.0,0.246703]
[1744635192159,0.234945,85127.0,85124.0,0.234951]
[1744635192371,0.34,85127.0,85125.0,0.234947]
[1744635192706,0.35192979,85127.0,85126.0,0.234944]
[1744635193290,0.35192979,85127.0,85126.0,0.234945]
[1744635193835,0.01192979,85127.0,85126.0,0.234945]
[1744635194037,0.34,85130.0,85129.0,0.234937]
[1744635194679,0.34,85130.0,85127.0,0.23494]
[1744635194882,0.57493,85132.0,85128.0,0.23494]
[1744635195110,0.34,85128.0,85126.0,0.12084154]
[1744635195299,0.23493,85132.0,85126.0,0.35578454]
[1744635195599,0.351746,85130.0,85127.0,0.23494]
[1744635195803,0.34,85130.0,85128.0,0.234938]
[1744635196008,0.34,85130.0,85129.0,0.234937]
[1744635196365,0.35195451,85130.0,85129.0,0.234937]
[1744635196572,0.01195451,85130.0,85129.0,0.234937]
[1744635196772,0.34,85131.0,85129.0,0.234937]
[1744635197379,0.34,85131.0,85128.0,0.234938]
[1744635197380,0.34,85129.0,85128.0,0.234938]
[1744635198674,0.246679,85131.0,85128.0,0.234938]
[1744635200306,0.34,85129.0,85128.0,0.234938]
[1744635201508,0.351746,85129.0,85127.0,0.234942]
[1744635201904,0.34,85129.0,85127.0,0.234942]
[1744635202308,0.23494,85128.0,85126.0,0.35578454]
[1744635202513,0.246683,85129.0,85126.0,0.35578454]
[1744635202923,0.351746,85130.0,85128.0,0.23494]
[1744635203323,0.011746,85129.0,85126.0,0.35578454]
[1744635203537,0.34,85128.0,85126.0,0.35678454]
[1744635203741,0.574941,85128.0,85126.0,0.35678654]
[1744635203940,0.574941,85128.0,85126.0,0.35778654]
[1744635204194,0.34,85128.0,85126.0,0.12284154]
[1744635204585,0.234941,85128.0,85126.0,0.35678654]
[1744635204778,0.234941,85128.0,85126.0,0.12084154]
[1744635205081,0.34,85127.0,85126.0,0.35678654]
[1744635206177,0.34,85128.0,85126.0,0.35578654]
[1744635206415,0.57494,85128.0,85126.0,0.12084154]
[1744635206546,0.234943,85127.0,85126.0,0.12284154]
[1744635207311,0.234943,85127.0,85126.0,0.12184154]
[1744635207455,0.234943,85127.0,85126.0,0.12284154]
[1744635207878,0.234943,85127.0,85126.0,0.12084154]
[1744635208112,0.234943,85127.0,85126.0,0.12284154]
[1744635208550,0.234943,85127.0,85126.0,0.12184154]
[1744635208838,0.234943,85127.0,85126.0,0.12284154]
[1744635210547,0.574941,85128.0,85126.0,0.12284154]
[1744635210696,0.34,85128.0,85126.0,0.35778654]
[1744635211044,0.57494,85128.0,85126.0,0.12284154]
[1744635211252,0.234943,85127.0,85126.0,0.12284154]
[1744635211455,0.234943,85127.0,85126.0,0.12184154]
[1744635211653,0.234943,85127.0,85126.0,0.12284154]
[1744635211878,0.57494,85128.0,85126.0,0.12284154]
[1744635212061,0.57494,85128.0,85126.0,0.35678654]
[1744635212259,0.34,85128.0,85126.0,0.35678654]
[1744635212560,0.34,85128.0,85126.0,0.35778654]
[1744635212858,0.34,85128.0,85126.0,0.35678654]
[1744635213111,0.34,85129.0,85128.0,0.23494]
[1744635213675,0.34,85129.0,85127.0,0.234943]
[1744635213837,0.24668,85131.0,85128.0,0.23494]
[1744635215258,0.011746,85134.0,85131.0,0.234929]
[1744635215668,0.011746,85133.0,85130.0,0.234932]
[1744635216291,0.011745,85136.0,85129.0,0.234937]
[1744635216487,0.246661,85137.0,85134.0,0.234921]
[1744635216749,0.011745,85136.0,85133.0,0.234921]
[1744635217143,0.011746,85135.0,85133.0,0.234926]
[1744635218465,0.246667,85135.0,85132.0,0.234927]
[1744635219803,0.011746,85132.0,85129.0,0.234935]
[1744635219914,0.011746,85129.0,85121.0,0.192107]
[1744635220123,0.011747,85125.0,85122.0,0.12084154]
[1744635220328,0.011747,85126.0,85122.0,0.12084154]
[1744635220524,0.011747,85125.0,85122.0,0.12084154]
[1744635220841,0.234954,85123.0,85122.0,0.12084154]
[1744635221056,0.246695,85126.0,85122.0,0.35579554]
[1744635221418,0.011747,85126.0,85123.0,0.234953]
[1744635221624,0.234946,85126.0,85124.0,0.23495]
[1744635221763,0.246693,85126.0,85123.0,0.35579454]
[1744635221964,0.246693,85126.0,85123.0,0.12084154]
[1744635222171,0.246693,85126.0,85124.0,0.234951]
[1744635222390,0.246693,85126.0,85123.0,0.35579354]
[1744635222763,0.246693,85126.0,85123.0,0.12084154]
[1744635223012,0.246693,85126.0,85123.0,0.12184154]
[1744635223540,0.246693,85126.0,85123.0,0.12384154]
[1744635223922,0.246693,85126.0,85124.0,0.23495]
[1744635224078,0.011747,85126.0,85124.0,0.23495]
[1744635224294,0.246691,85127.0,85124.0,0.23495]
[1744635224497,0.246684,85129.0,85126.0,0.234943]
[1744635224696,0.246689,85128.0,85125.0,0.234943]
[1744635224893,0.234943,85127.0,85125.0,0.234943]
[1744635225115,0.24669,85127.0,85124.0,0.23595]
[1744635225433,0.011747,85127.0,85125.0,0.234946]
[1744635225639,0.24669,85127.0,85125.0,0.234946]
[1744635225837,0.24669,85127.0,85125.0,0.235946]
[1744635225981,0.24669,85127.0,85125.0,0.001]
[1744635226194,0.246689,85128.0,85126.0,0.234945]
[1744635226396,0.246684,85129.0,85125.0,0.235948]
[1744635226592,0.246684,85129.0,85126.0,0.234945]
[1744635227033,0.246685,85129.0,85126.0,0.234945]
[1744635228115,0.011746,85132.0,85129.0,0.234935]
[1744635228321,0.011746,85132.0,85127.0,0.011747]
[1744635228322,0.011746,85131.0,85127.0,0.234937]
[1744635228503,0.011746,85131.0,85129.0,0.234936]
[1744635228694,0.011746,85130.0,85128.0,0.234938]
[1744635228895,0.246679,85131.0,85129.0,0.234937]
[1744635229123,0.011746,85129.0,85127.0,0.234942]
[1744635230258,0.011746,85129.0,85127.0,0.235942]
[1744635230562,0.246679,85131.0,85129.0,0.234937]
[1744635230732,0.24668,85130.0,85127.0,0.001]
[1744635230938,0.234937,85129.0,85127.0,0.235942]
[1744635231154,0.24668,85130.0,85127.0,0.235942]
[1744635231303,0.24668,85130.0,85127.0,0.001]
[1744635231304,0.23494,85128.0,85127.0,0.001]
[1744635231723,0.23494,85128.0,85127.0,0.002]
[1744635232131,0.23494,85128.0,85127.0,0.001]
[1744635232344,0.24669,85127.0,85124.0,0.23495]
[1744635232509,0.246695,85126.0,85123.0,0.234953]
[1744635233223,0.234948,85125.0,85123.0,0.234953]
[1744635233828,0.246693,85126.0,85124.0,0.234951]
[1744635233949,0.011747,85126.0,85124.0,0.234951]
[1744635234561,0.011747,85126.0,85124.0,0.235951]
[1744635234764,0.246693,85126.0,85124.0,0.235951]
[1744635234963,0.246693,85126.0,85124.0,0.234951]
[1744635235205,0.011747,85128.0,85125.0,0.234948]
[1744635235415,0.35202631,85139.0,85137.0,0.234912]
[1744635235574,0.246663,85136.0,85133.0,0.234925]
[1744635235914,0.246665,85136.0,85133.0,0.234925]
[1744635236113,0.234921,85135.0,85133.0,0.234925]
[1744635236319,0.246667,85135.0,85132.0,0.234928]
[1744635236817,0.246674,85133.0,85129.0,0.234934]
[1744635237375,0.246674,85133.0,85130.0,0.234932]
[1744635238100,0.246674,85133.0,85129.0,0.234934]
[1744635238422,0.246674,85133.0,85130.0,0.234933]
[1744635239267,0.234929,85132.0,85130.0,0.234933]
[1744635239411,0.246675,85132.0,85129.0,0.234934]
[1744635239613,0.246676,85132.0,85129.0,0.234934]
[1744635240168,0.246674,85133.0,85129.0,0.234934]
[1744635240169,0.228334,85133.0,85130.0,0.234932]
[1744635240345,0.246677,85133.0,85128.0,0.296484]
[1744635240552,0.246676,85132.0,85128.0,0.061547]
[1744635240731,0.011746,85131.0,85128.0,0.284739]
[1744635240932,0.246678,85131.0,85129.0,0.234937]
[1744635241342,0.234934,85130.0,85128.0,0.284739]
[1744635242326,0.246678,85131.0,85128.0,0.284739]
[1744635242679,0.246684,85129.0,85128.0,0.001]
[1744635242974,0.246681,85130.0,85128.0,0.001]
[1744635243182,0.234937,85129.0,85128.0,0.001]
[1744635243338,0.246681,85130.0,85128.0,0.001]
[1744635244096,0.246681,85130.0,85127.0,0.234941]
[1744635244222,0.234938,85129.0,85128.0,0.001]
[1744635245570,0.234938,85129.0,85127.0,0.12084154]
[1744635245961,0.234951,85124.0,85123.0,0.0659427]
[1744635246156,0.234951,85124.0,85123.0,0.13918424]
[1744635247399,0.234951,85124.0,85123.0,0.14118424]
[1744635248029,0.234951,85124.0,85123.0,0.0213427]
[1744635248247,0.234951,85124.0,85123.0,0.003]
[1744635249502,0.574951,85124.0,85123.0,0.003]
[1744635250695,0.234951,85124.0,85123.0,0.003]
[1744635250925,0.011747,85128.0,85123.0,0.014747]
[1744635251129,0.4165,85133.0,85125.0,0.011747]
[1744635251335,0.011746,85131.0,85126.0,0.011747]
[1744635251486,0.246684,85129.0,85125.0,0.234947]
[1744635251837,0.011747,85128.0,85124.0,0.234948]
[1744635251949,0.246686,85129.0,85125.0,0.234948]
[1744635252152,0.246686,85129.0,85126.0,0.234943]
[1744635252581,0.246683,85130.0,85127.0,0.23494]
[1744635252768,0.246684,85129.0,85126.0,0.234943]
[1744635252966,0.246684,85129.0,85127.0,0.234942]
[1744635253166,0.011746,85129.0,85127.0,0.234942]
[1744635254038,0.011746,85129.0,85127.0,0.235942]
[1744635254247,0.246684,85129.0,85127.0,0.001]
[1744635254444,0.011746,85129.0,85127.0,0.235942]
[1744635254701,0.234935,85130.0,85128.0,0.23494]
[1744635255556,0.246678,85131.0,85128.0,0.23494]
[1744635255704,0.011746,85132.0,85129.0,0.234935]
[1744635255903,0.246677,85132.0,85129.0,0.234935]
[1744635256915,0.246675,85132.0,85129.0,0.234935]
[1744635257216,0.01147544,85139.0,85132.0,0.030086]
[1744635257217,0.34,85138.0,85132.0,0.030086]
[1744635257422,0.34,85138.0,85135.0,0.234918]
[1744635257423,0.351745,85138.0,85135.0,0.234918]
[1744635257638,0.234916,85137.0,85135.0,0.12084154]
[1744635257870,0.234918,85136.0,85135.0,0.12084154]
[1744635259099,0.234916,85137.0,85135.0,0.12084154]
[1744635259603,0.233716,85137.0,85135.0,0.12084154]
[1744635259805,0.586663,85138.0,85132.0,0.01834]
[1744635259806,0.234924,85134.0,85132.0,0.01834]
[1744635260004,0.234926,85133.0,85132.0,0.01834]
[1744635262334,0.234926,85133.0,85132.0,0.00723]
[1744635263453,0.234929,85132.0,85130.0,0.234934]
[1744635264215,0.011746,85131.0,85128.0,0.234937]
[1744635264548,0.246675,85132.0,85129.0,0.35577754]
[1744635265681,0.246675,85132.0,85130.0,0.234934]
[1744635265991,0.246672,85134.0,85131.0,0.234932]
[1744635266123,0.234926,85133.0,85131.0,0.234932]
[1744635267414,0.234929,85132.0,85130.0,0.234934]
[1744635271471,0.246675,85132.0,85130.0,0.234934]
[1744635271650,0.246675,85132.0,85129.0,0.12084154]
[1744635271651,0.234934,85130.0,85129.0,0.12084154]
[1744635272252,0.234934,85131.0,85129.0,0.12084154]
[1744635272460,0.234934,85131.0,85129.0,0.35577854]
[1744635272784,0.011747,85127.0,85123.0,0.011747]
[1744635273113,0.0951,85139.0,85093.0,0.0008446]
[1744635273114,0.234984,85112.0,85110.0,0.13408]
[1744635273313,0.234984,85112.0,85111.0,0.12084154]
[1744635273794,0.011747,85121.0,85116.0,0.011748]
[1744635274000,0.234965,85119.0,85114.0,0.011748]
[1744635274147,0.011748,85118.0,85115.0,0.234976]
[1744635274485,0.246717,85118.0,85115.0,0.234975]
[1744635274987,0.246717,85118.0,85116.0,0.002]
[1744635275354,0.23497,85117.0,85116.0,0.002]
[1744635275800,0.011748,85114.0,85111.0,0.12084154]
[1744635275972,0.246726,85115.0,85111.0,0.35582554]
[1744635276179,0.011748,85115.0,85112.0,0.234982]
[1744635276400,0.246722,85116.0,85115.0,0.001]
[1744635276832,0.246722,85116.0,85113.0,0.12084154]
[1744635277537,0.246722,85116.0,85113.0,0.35582154]
[1744635277900,0.246722,85116.0,85113.0,0.35782154]
[1744635278100,0.246722,85116.0,85113.0,0.35982154]
[1744635278352,0.011748,85117.0,85114.0,0.234978]
[1744635278552,0.011747,85123.0,85116.0,0.234973]
[1744635278726,0.246716,85118.0,85115.0,0.234975]
[1744635278927,0.246718,85117.0,85114.0,0.234978]
[1744635279144,0.246718,85117.0,85113.0,0.12484154]
[1744635279145,0.011748,85116.0,85113.0,0.12484154]
[1744635279506,0.234976,85115.0,85113.0,0.35982154]
[1744635279712,0.246721,85117.0,85114.0,0.234976]
[1744635279984,0.234976,85115.0,85113.0,0.004]
[1744635280139,0.234978,85114.0,85113.0,0.004]
[1744635280346,0.234978,85114.0,85113.0,0.002]
[1744635280925,0.246753,85106.0,85104.0,0.235006]
[1744635281147,0.011751,85099.0,85094.0,0.0121735]
[1744635281374,0.011751,85099.0,85095.0,0.12084234]
[1744635281375,0.235025,85097.0,85095.0,0.12084234]
[1744635281525,0.235028,85096.0,85095.0,8e-07]
[1744635282112,0.58956885,85096.0,85095.0,8e-07]
[1744635282315,0.58956885,85096.0,85095.0,0.0080008]
[1744635282555,0.58956885,85096.0,85095.0,0.0030008]
[1744635283409,0.58956885,85096.0,85095.0,0.0060008]
[1744635283761,0.58956885,85096.0,85095.0,0.0030008]
[1744635284214,0.71938931,85096.0,85095.0,0.0030008]
[1744635284412,0.81428931,85096.0,85095.0,0.0030008]